[Event "FIDE Online Quarter final-2020"]
[Site "Online"]
[Date "2020.08.29"]
[Round "4.2"]
[White "Shankland, Sam"]
[Black "Shtembuliak, Evgeny"]
[Result "1-0"]
[ECO "A42"]
[WhiteElo "2757"]
[BlackElo "2478"]
[Annotator "ChessBase"]
[PlyCount "73"]
[EventDate "2020.08.28"]
[EventType "k.o."]
[SourceTitle "playchess.com"]
[Source "ChessBase"]
[SourceQuality "1"]
[TimeControl "900+5"]

1. d4 {[%emt 0:00:05]} g6 {[%emt 0:00:01]} 2. e4 {[%emt 0:00:02]} d6 {[%emt 0:00:01]} 3. c4 {[%emt 0:00:03]} Bg7 {[%emt 0:00:02]} 4. Nc3 {[%emt 0:00:03]} e5 {[%emt 0:00:01]} 5. Nf3 {[%emt 0:00:01]} Nc6 {[%emt 0:00:03]} 6. dxe5 {[%emt 0:00:03]} dxe5 {[%emt 0:00:25]} 7. Qxd8+ {[%emt 0:00:01]} Kxd8 {[%emt 0:00:47]} 8. Be3 {[%emt 0:00:02]} Bg4 {[%emt 0:01:15]} 9. Ng5 {[%emt 0:00:54]} Ke8 {[%emt 0:00:05]} 10. Nb5 {[%emt 0:00:58]} h6 {[%emt 0:02:56]} 11. Nf3 {[%emt 0:00:15]} Kd8 {[%emt 0:00:38]} 12. O-O-O+ {[%emt 0:00:16]} Kc8 {[%emt 0:00:02]} 13. Be2 {[%emt 0:00:50]} Nf6 {[%emt 0:01:04]} 14. h3 {[%emt 0:00:10]} Bxf3 {[%emt 0:00:09]} 15. Bxf3 {[%emt 0:00:00]} h5 {[%emt 0:00:48]} 16. g4 {[%emt 0:00:37]} a6 {[%emt 0:00:06]} 17. Nc3 {[%emt 0:00:13]} Nd4 {[%emt 0:00:27]} 18. Bg2 {[%emt 0:00:25]} hxg4 {[%emt 0:02:06]} 19. hxg4 {[%emt 0:00:03]} Rxh1 {[%emt 0:00:05]} 20. Rxh1 {[%emt 0:00:01]} c6 {[%emt 0:01:01]} 21. f4 {[%emt 0:01:00]} Ne6 {[%emt 0:01:22]} 22. f5 {[%emt 0:00:34]} Nxg4 {[%emt 0:02:17]} 23. fxe6 {[%emt 0:00:06]} Nxe3 {[%emt 0:00:02]} 24. Rh7 {[%emt 0:00:00]} Bf8 {[%emt 0:00:09]} 25. Rxf7 {[%emt 0:00:13]} Bh6 {[%emt 0:00:01]} 26. Bh3 {[%emt 0:00:38]} Kb8 {[%emt 0:00:38]} 27. e7 {[%emt 0:00:56]} Ka7 {[%emt 0:00:07]} 28. Bd7 {[%emt 0:00:04]} Nxc4+ {[%emt 0:00:02]} 29. Kc2 {[%emt 0:00:06]} Nd6 {[%emt 0:00:07]} 30. Rf6 {[%emt 0:00:21]} Ne8 {[%emt 0:00:23]} 31. Rxg6 {[%emt 0:00:08]} Be3 {[%emt 0:00:09]} 32. Rg8 {[%emt 0:00:12]} Nf6 {[%emt 0:00:01]} 33. Rf8 {[%emt 0:00:21]} Bg5 {[%emt 0:00:10]} 34. Na4 {[%emt 0:01:16]} Rb8 {[%emt 0:00:08]} 35. Nb6 {[%emt 0:00:36]} Bh4 {[%emt 0:00:09]} 36. Nc8+ {[%emt 0:00:06]} Ka8 {[%emt 0:00:01]} 37. Rxf6 {[%emt 0:00:03]} 1-0

[Event "FIDE Online Quarter final-2020"]
[Site "Online"]
[Date "2020.08.29"]
[Round "4.2"]
[White "Korobov, Anton"]
[Black "So, Wesley"]
[Result "0-1"]
[ECO "D05"]
[WhiteElo "2736"]
[BlackElo "2754"]
[Annotator "ChessBase"]
[PlyCount "108"]
[EventDate "2020.08.28"]
[EventType "k.o."]
[SourceTitle "playchess.com"]
[Source "ChessBase"]
[SourceQuality "1"]
[TimeControl "900+5"]

1. d4 {[%emt 0:00:01]} Nf6 {[%emt 0:00:03]} 2. Nf3 {[%emt 0:00:01]} d5 {[%emt 0:00:04]} 3. e3 {[%emt 0:00:02]} e6 {[%emt 0:00:39]} 4. Bd3 {[%emt 0:00:07]} c5 {[%emt 0:00:38]} 5. b3 {[%emt 0:00:03]} b6 {[%emt 0:00:23]} 6. O-O {[%emt 0:00:25]} Bb7 {[%emt 0:00:07]} 7. Bb2 {[%emt 0:00:05]} Be7 {[%emt 0:00:43]} 8. Nbd2 {[%emt 0:00:07]} O-O {[%emt 0:00:04]} 9. Ne5 {[%emt 0:00:35]} Nbd7 {[%emt 0:00:22]} 10. Qe2 {[%emt 0:00:59]} Rc8 {[%emt 0:00:16]} 11. Rad1 {[%emt 0:00:21]} Qc7 {[%emt 0:00:16]} 12. f4 {[%emt 0:00:16]} g6 {[%emt 0:01:55]} 13. Ndf3 {[%emt 0:01:29]} cxd4 {[%emt 0:01:15]} 14. exd4 {[%emt 0:00:10]} Ne4 {[%emt 0:00:12]} 15. Nxd7 {[%emt 0:00:24]} Qxd7 {[%emt 0:00:02]} 16. Ne5 {[%emt 0:00:02]} Qc7 {[%emt 0:00:09]} 17. Bxe4 {[%emt 0:00:02]} dxe4 {[%emt 0:00:00]} 18. c4 {[%emt 0:00:01]} Rfd8 {[%emt 0:01:09]} 19. a4 {[%emt 0:01:29]} a6 {[%emt 0:00:13]} 20. Qe1 {[%emt 0:00:44]} b5 {[%emt 0:00:47]} 21. Bc3 {[%emt 0:00:50]} Qd6 {[%emt 0:01:26]} 22. axb5 {[%emt 0:00:22]} axb5 {[%emt 0:00:00]} 23. c5 {[%emt 0:00:05]} Qd5 {[%emt 0:00:12]} 24. Ng4 {[%emt 0:00:09]} f5 {[%emt 0:00:50]} 25. Ne3 {[%emt 0:00:18]} Qxb3 {[%emt 0:00:46]} 26. Rf2 {[%emt 0:02:09]} Ra8 {[%emt 0:00:51]} 27. Rb2 {[%emt 0:00:37]} Qa4 {[%emt 0:00:03]} 28. g4 {[%emt 0:00:29]} fxg4 {[%emt 0:00:56]} 29. Rb4 {[%emt 0:01:42]} Qa6 {[%emt 0:00:02]} 30. Nxg4 {[%emt 0:00:02]} Qc6 {[%emt 0:00:02]} 31. Qe3 {[%emt 0:00:18]} Bxc5 {[%emt 0:00:23]} 32. Rbb1 {[%emt 0:00:29]} Be7 {[%emt 0:00:07]} 33. Bb4 {[%emt 0:00:30]} Bxb4 {[%emt 0:00:27]} 34. Rxb4 {[%emt 0:00:00]} Ra2 {[%emt 0:00:03]} 35. Rc1 {[%emt 0:00:17]} Rc2 {[%emt 0:00:04]} 36. Rbb1 {[%emt 0:00:12]} Rc8 {[%emt 0:00:18]} 37. Rxc2 {[%emt 0:00:41]} Qxc2 {[%emt 0:00:00]} 38. Qb3 {[%emt 0:00:01]} Qxb3 {[%emt 0:00:53]} 39. Rxb3 {[%emt 0:00:00]} Rc1+ {[%emt 0:00:05]} 40. Kf2 {[%emt 0:00:08]} Rc2+ {[%emt 0:00:01]} 41. Kg3 {[%emt 0:00:19]} Bc6 {[%emt 0:00:05]} 42. Ne5 {[%emt 0:00:25]} Be8 {[%emt 0:00:24]} 43. Ra3 {[%emt 0:00:05]} Rd2 {[%emt 0:00:27]} 44. Ra7 {[%emt 0:00:22]} Rxd4 {[%emt 0:00:01]} 45. Ng4 {[%emt 0:00:01]} Kf8 {[%emt 0:00:07]} 46. Nf6 {[%emt 0:00:01]} Bc6 {[%emt 0:00:02]} 47. Nxh7+ {[%emt 0:00:05]} Ke8 {[%emt 0:00:01]} 48. Ng5 {[%emt 0:00:02]} Bd5 {[%emt 0:00:06]} 49. Nf7 {[%emt 0:00:11]} b4 {[%emt 0:00:06]} 50. Nd6+ {[%emt 0:00:16]} Kd8 {[%emt 0:00:02]} 51. Nf7+ {[%emt 0:00:05]} Kc8 {[%emt 0:00:03]} 52. Nd6+ {[%emt 0:00:01]} Kb8 {[%emt 0:00:02]} 53. Ra5 {[%emt 0:00:01]} b3 {[%emt 0:00:06]} 54. Rb5+ {[%emt 0:00:01]} Kc7 {[%emt 0:00:04]} 0-1

[Event "FIDE Online Quarter final-2020"]
[Site "Online"]
[Date "2020.08.29"]
[Round "4.2"]
[White "Shevchenko, Kirill"]
[Black "Xiong, Jeffery"]
[Result "1/2-1/2"]
[ECO "C67"]
[WhiteElo "2728"]
[BlackElo "2710"]
[Annotator "ChessBase"]
[PlyCount "95"]
[EventDate "2020.08.28"]
[EventType "k.o."]
[SourceTitle "playchess.com"]
[Source "ChessBase"]
[SourceQuality "1"]
[TimeControl "900+5"]

1. e4 {[%emt 0:00:02]} e5 {[%emt 0:00:02]} 2. Nf3 {[%emt 0:00:02]} Nc6 {[%emt 0:00:00]} 3. Bb5 {[%emt 0:00:01]} Nf6 {[%emt 0:00:01]} 4. O-O {[%emt 0:00:05]} Nxe4 {[%emt 0:00:01]} 5. d4 {[%emt 0:00:00]} Nd6 {[%emt 0:00:00]} 6. Bxc6 {[%emt 0:00:01]} dxc6 {[%emt 0:00:01]} 7. dxe5 {[%emt 0:00:01]} Nf5 {[%emt 0:00:00]} 8. Qxd8+ {[%emt 0:00:02]} Kxd8 {[%emt 0:00:00]} 9. Nc3 {[%emt 0:00:10]} Bd7 {[%emt 0:00:01]} 10. h3 {[%emt 0:00:21]} h6 {[%emt 0:00:02]} 11. b3 {[%emt 0:00:11]} Kc8 {[%emt 0:00:01]} 12. Bb2 {[%emt 0:00:03]} b6 {[%emt 0:00:02]} 13. Rad1 {[%emt 0:00:12]} Ne7 {[%emt 0:00:02]} 14. Rfe1 {[%emt 0:00:33]} c5 {[%emt 0:00:04]} 15. Ne2 {[%emt 0:00:36]} Be6 {[%emt 0:00:12]} 16. Nf4 {[%emt 0:01:59]} Kb7 {[%emt 0:00:02]} 17. c4 {[%emt 0:03:25]} Nc6 {[%emt 0:01:32]} 18. Rd2 {[%emt 0:03:21]} Be7 {[%emt 0:01:34]} 19. g4 {[%emt 0:00:41]} g5 {[%emt 0:01:22]} 20. Nxe6 {[%emt 0:01:00]} fxe6 {[%emt 0:00:00]} 21. Kg2 {[%emt 0:00:38]} Raf8 {[%emt 0:00:56]} 22. Nh2 {[%emt 0:01:02]} Bd8 {[%emt 0:00:18]} 23. Nf1 {[%emt 0:00:31]} Ne7 {[%emt 0:00:01]} 24. Ng3 {[%emt 0:00:02]} Ng6 {[%emt 0:00:01]} 25. Red1 {[%emt 0:00:44]} Be7 {[%emt 0:02:04]} 26. Rd7 {[%emt 0:00:05]} Rh7 {[%emt 0:00:59]} 27. Ne4 {[%emt 0:00:34]} Rhf7 {[%emt 0:00:02]} 28. Nd6+ {[%emt 0:00:40]} Bxd6 {[%emt 0:00:06]} 29. Rxf7 {[%emt 0:00:02]} Rxf7 {[%emt 0:00:00]} 30. exd6 {[%emt 0:00:00]} Rd7 {[%emt 0:00:28]} 31. Bg7 {[%emt 0:00:16]} Nf4+ {[%emt 0:03:55]} 32. Kh2 {[%emt 0:00:02]} h5 {[%emt 0:00:10]} 33. gxh5 {[%emt 0:00:01]} Nxh5 {[%emt 0:00:06]} 34. Be5 {[%emt 0:00:01]} Nf4 {[%emt 0:00:18]} 35. Bxf4 {[%emt 0:00:24]} gxf4 {[%emt 0:00:02]} 36. Kg2 {[%emt 0:00:01]} cxd6 {[%emt 0:00:15]} 37. h4 {[%emt 0:00:03]} Kc6 {[%emt 0:00:09]} 38. Kf3 {[%emt 0:00:02]} b5 {[%emt 0:01:28]} 39. Kxf4 {[%emt 0:00:11]} bxc4 {[%emt 0:00:01]} 40. bxc4 {[%emt 0:00:00]} Rf7+ {[%emt 0:00:06]} 41. Kg5 {[%emt 0:00:06]} Rxf2 {[%emt 0:00:05]} 42. Rh1 {[%emt 0:00:01]} Kd7 {[%emt 0:00:33]} 43. h5 {[%emt 0:00:10]} Ke7 {[%emt 0:00:00]} 44. h6 {[%emt 0:00:03]} Rg2+ {[%emt 0:00:02]} 45. Kf4 {[%emt 0:00:09]} Rf2+ {[%emt 0:00:21]} 46. Kg5 {[%emt 0:00:02]} Rg2+ {[%emt 0:00:04]} 47. Kf4 {[%emt 0:00:01]} Rf2+ {[%emt 0:00:15]} 48. Kg5 {[%emt 0:00:14]} 1/2-1/2

[Event "FIDE Online Quarter final-2020"]
[Site "Online"]
[Date "2020.08.29"]
[Round "4.2"]
[White "Gumularz, Szymon"]
[Black "Asadli, Vugar"]
[Result "0-1"]
[ECO "A42"]
[WhiteElo "2442"]
[BlackElo "2350"]
[Annotator "ChessBase"]
[PlyCount "42"]
[EventDate "2020.08.28"]
[EventType "k.o."]
[SourceTitle "playchess.com"]
[Source "ChessBase"]
[SourceQuality "1"]
[TimeControl "900+5"]

1. d4 {[%emt 0:00:02]} d6 {[%emt 0:00:12]} 2. e4 {[%emt 0:05:18]} g6 {[%emt 0:00:06]} 3. c4 {[%emt 0:00:02]} Bg7 {[%emt 0:00:05]} 4. Nc3 {[%emt 0:00:03]} Nc6 {[%emt 0:00:08]} 5. Be3 {[%emt 0:00:04]} e5 {[%emt 0:00:01]} 6. d5 {[%emt 0:00:02]} Nce7 {[%emt 0:00:01]} 7. g4 {[%emt 0:00:02]} f5 {[%emt 0:00:04]} 8. gxf5 {[%emt 0:00:01]} gxf5 {[%emt 0:00:01]} 9. Qh5+ {[%emt 0:00:01]} Kf8 {[%emt 0:00:00]} 10. Bh3 {[%emt 0:00:03]} Nf6 {[%emt 0:00:12]} 11. Qf3 {[%emt 0:00:05]} f4 {[%emt 0:00:54]} 12. Bd2 {[%emt 0:00:04]} Ng6 {[%emt 0:00:13]} 13. Bxc8 {[%emt 0:00:03]} Qxc8 {[%emt 0:00:07]} 14. h4 {[%emt 0:00:03]} h5 {[%emt 0:00:28]} 15. O-O-O {[%emt 0:00:03]} a6 {[%emt 0:00:51]} 16. Qd3 {[%emt 0:00:09]} Rg8 {[%emt 0:00:25]} 17. Nf3 {[%emt 0:00:03]} c5 {[%emt 0:01:05]} 18. Ng5 {[%emt 0:00:00]} Ke7 {[%emt 0:00:20]} 19. Rdg1 {[%emt 0:00:00]} Bh6 {[%emt 0:00:20]} 20. Rg2 {[%emt 0:00:00]} Qd7 {[%emt 0:00:15]} 21. Rhg1 {[%emt 0:00:00]} Nxh4 {[%emt 0:00:10]} 0-1

[Event "FIDE Online Quarter final-2020"]
[Site "Online"]
[Date "2020.08.28"]
[Round "4.2"]
[White "Socko, Monika"]
[Black "Mammadzada, Gunay"]
[Result "0-1"]
[ECO "D11"]
[WhiteElo "2353"]
[BlackElo "2465"]
[Annotator "ChessBase"]
[PlyCount "130"]
[EventDate "2020.08.28"]
[EventType "k.o."]
[SourceTitle "playchess.com"]
[Source "ChessBase"]
[SourceQuality "1"]
[TimeControl "900+5"]

1. d4 {[%emt 0:00:01]} d5 {[%emt 0:00:02]} 2. c4 {[%emt 0:00:02]} c6 {[%emt 0:00:02]} 3. Nf3 {[%emt 0:00:01]} Nf6 {[%emt 0:00:03]} 4. Nbd2 {[%emt 0:00:02]} Bf5 {[%emt 0:00:02]} 5. Nh4 {[%emt 0:03:59]} Be4 {[%emt 0:00:04]} 6. e3 {[%emt 0:01:23]} e6 {[%emt 0:00:05]} 7. Be2 {[%emt 0:00:11]} h6 {[%emt 0:00:02]} 8. O-O {[%emt 0:00:06]} Bh7 {[%emt 0:00:02]} 9. Nhf3 {[%emt 0:00:05]} Nbd7 {[%emt 0:00:02]} 10. c5 {[%emt 0:00:14]} Qc7 {[%emt 0:02:40]} 11. b4 {[%emt 0:00:27]} Be7 {[%emt 0:02:25]} 12. Bb2 {[%emt 0:00:00]} O-O {[%emt 0:00:32]} 13. a4 {[%emt 0:00:00]} b6 {[%emt 0:00:11]} 14. Nb3 {[%emt 0:01:22]} bxc5 {[%emt 0:01:57]} 15. dxc5 {[%emt 0:00:04]} Rab8 {[%emt 0:00:02]} 16. b5 {[%emt 0:00:26]} Nxc5 {[%emt 0:01:58]} 17. Be5 {[%emt 0:00:14]} Bd6 {[%emt 0:00:26]} 18. Nxc5 {[%emt 0:00:39]} Bxe5 {[%emt 0:01:19]} 19. Na6 {[%emt 0:00:04]} Qd6 {[%emt 0:00:02]} 20. Nxe5 {[%emt 0:00:03]} Qxe5 {[%emt 0:00:03]} 21. Nxb8 {[%emt 0:00:01]} Rxb8 {[%emt 0:02:01]} 22. bxc6 {[%emt 0:00:05]} Ne4 {[%emt 0:00:02]} 23. Qd4 {[%emt 0:00:22]} Qc7 {[%emt 0:01:11]} 24. Rab1 {[%emt 0:00:53]} Rc8 {[%emt 0:01:39]} 25. Ba6 {[%emt 0:00:29]} Rd8 {[%emt 0:00:05]} 26. Rfc1 {[%emt 0:00:31]} e5 {[%emt 0:00:07]} 27. Qb4 {[%emt 0:01:02]} Nd6 {[%emt 0:00:02]} 28. Rb2 {[%emt 0:00:04]} Bf5 {[%emt 0:00:03]} 29. Qc5 {[%emt 0:00:35]} Be6 {[%emt 0:00:10]} 30. Bb7 {[%emt 0:00:13]} Nc4 {[%emt 0:00:05]} 31. Rb5 {[%emt 0:00:17]} e4 {[%emt 0:00:06]} 32. Qxa7 {[%emt 0:00:11]} d4 {[%emt 0:00:02]} 33. exd4 {[%emt 0:00:21]} Qf4 {[%emt 0:00:06]} 34. Rbb1 {[%emt 0:00:12]} e3 {[%emt 0:00:04]} 35. c7 {[%emt 0:00:32]} exf2+ {[%emt 0:00:04]} 36. Kh1 {[%emt 0:00:02]} Qxc7 {[%emt 0:00:03]} 37. d5 {[%emt 0:00:08]} Bxd5 {[%emt 0:00:04]} 38. Qxf2 {[%emt 0:00:31]} Bxb7 {[%emt 0:00:03]} 39. a5 {[%emt 0:00:07]} Rc8 {[%emt 0:00:10]} 40. h3 {[%emt 0:00:16]} Ba6 {[%emt 0:00:04]} 41. Rb6 {[%emt 0:00:08]} Bb7 {[%emt 0:00:08]} 42. Rxc4 {[%emt 0:00:12]} Qxc4 {[%emt 0:00:02]} 43. Rxb7 {[%emt 0:00:01]} Ra8 {[%emt 0:00:06]} 44. Qb6 {[%emt 0:00:17]} Qf1+ {[%emt 0:00:05]} 45. Kh2 {[%emt 0:00:03]} Qf4+ {[%emt 0:00:01]} 46. Kh1 {[%emt 0:00:01]} Qf1+ {[%emt 0:00:03]} 47. Kh2 {[%emt 0:00:01]} Qf4+ {[%emt 0:00:02]} 48. Kh1 {[%emt 0:00:02]} Rc8 {[%emt 0:00:09]} 49. Qg1 {[%emt 0:00:42]} Rc1 {[%emt 0:00:02]} 50. a6 {[%emt 0:00:01]} Rxg1+ {[%emt 0:00:07]} 51. Kxg1 {[%emt 0:00:01]} Qd4+ {[%emt 0:00:01]} 52. Kh1 {[%emt 0:00:04]} Qa1+ {[%emt 0:00:01]} 53. Kh2 {[%emt 0:00:02]} Qxa6 {[%emt 0:00:01]} 54. Rb8+ {[%emt 0:00:01]} Kh7 {[%emt 0:00:00]} 55. Re8 {[%emt 0:00:02]} Qd6+ {[%emt 0:00:02]} 56. Kh1 {[%emt 0:00:02]} f5 {[%emt 0:00:02]} 57. Re1 {[%emt 0:00:04]} g5 {[%emt 0:00:01]} 58. Rb1 {[%emt 0:00:04]} Kg6 {[%emt 0:00:01]} 59. Kg1 {[%emt 0:00:02]} f4 {[%emt 0:00:02]} 60. Rf1 {[%emt 0:00:06]} h5 {[%emt 0:00:01]} 61. Kh1 {[%emt 0:00:01]} g4 {[%emt 0:00:02]} 62. Kh2 {[%emt 0:00:03]} f3+ {[%emt 0:00:03]} 63. Kh1 {[%emt 0:00:02]} Qd2 {[%emt 0:00:22]} 64. gxf3 {[%emt 0:00:04]} g3 {[%emt 0:00:02]} 65. Rg1 {[%emt 0:00:04]} Qh2# {[%emt 0:00:02]} 0-1

[Event "FIDE Online Quarter final-2020"]
[Site "Online"]
[Date "2020.08.29"]
[Round "4.2"]
[White "Fataliyeva, Ulviyya"]
[Black "Cyfka, Karina"]
[Result "1-0"]
[ECO "A46"]
[WhiteElo "2337"]
[BlackElo "2232"]
[Annotator "ChessBase"]
[PlyCount "135"]
[EventDate "2020.08.28"]
[EventType "k.o."]
[SourceTitle "playchess.com"]
[Source "ChessBase"]
[SourceQuality "1"]
[TimeControl "900+5"]

1. d4 {[%emt 0:00:02]} Nf6 {[%emt 0:00:03]} 2. Bg5 {[%emt 0:00:02]} e6 {[%emt 0:03:39]} 3. e4 {[%emt 0:01:19]} h6 {[%emt 0:00:05]} 4. Bxf6 {[%emt 0:00:33]} Qxf6 {[%emt 0:00:02]} 5. Nf3 {[%emt 0:02:15]} Nc6 {[%emt 0:00:22]} 6. c3 {[%emt 0:00:27]} b6 {[%emt 0:00:06]} 7. Nbd2 {[%emt 0:00:41]} Bb7 {[%emt 0:00:05]} 8. Bd3 {[%emt 0:00:02]} g5 {[%emt 0:00:29]} 9. h3 {[%emt 0:00:30]} Bg7 {[%emt 0:00:00]} 10. Qe2 {[%emt 0:00:02]} Qe7 {[%emt 0:00:00]} 11. Ba6 {[%emt 0:00:13]} Bxa6 {[%emt 0:00:00]} 12. Qxa6 {[%emt 0:00:02]} O-O {[%emt 0:00:00]} 13. O-O-O {[%emt 0:00:27]} Rab8 {[%emt 0:00:00]} 14. Qd3 {[%emt 0:00:18]} b5 {[%emt 0:00:00]} 15. g4 {[%emt 0:01:38]} b4 {[%emt 0:00:00]} 16. c4 {[%emt 0:00:06]} b3 {[%emt 0:00:28]} 17. a3 {[%emt 0:00:41]} a5 {[%emt 0:00:19]} 18. h4 {[%emt 0:00:21]} gxh4 {[%emt 0:00:13]} 19. e5 {[%emt 0:01:32]} f6 {[%emt 0:00:43]} 20. Nxh4 {[%emt 0:00:07]} Qf7 {[%emt 0:00:13]} 21. f4 {[%emt 0:00:31]} d6 {[%emt 0:00:35]} 22. d5 {[%emt 0:01:10]} Ne7 {[%emt 0:00:20]} 23. f5 {[%emt 0:00:19]} exd5 {[%emt 0:00:13]} 24. e6 {[%emt 0:00:04]} Qe8 {[%emt 0:00:01]} 25. cxd5 {[%emt 0:00:24]} Rb5 {[%emt 0:00:47]} 26. Ne4 {[%emt 0:00:23]} Rxd5 {[%emt 0:00:36]} 27. Qxb3 {[%emt 0:00:25]} Re5 {[%emt 0:00:06]} 28. Nc3 {[%emt 0:00:42]} Kh7 {[%emt 0:01:27]} 29. Kb1 {[%emt 0:00:30]} Qa8 {[%emt 0:00:17]} 30. Rh3 {[%emt 0:00:22]} Rb8 {[%emt 0:00:05]} 31. Qc2 {[%emt 0:00:10]} Kg8 {[%emt 0:00:20]} 32. Rhd3 {[%emt 0:00:28]} Qb7 {[%emt 0:00:31]} 33. Qd2 {[%emt 0:00:36]} Qc6 {[%emt 0:00:38]} 34. Nf3 {[%emt 0:00:04]} Rc5 {[%emt 0:00:13]} 35. Nd4 {[%emt 0:00:01]} Qb7 {[%emt 0:00:09]} 36. Rc1 {[%emt 0:00:20]} Rc4 {[%emt 0:00:22]} 37. Nce2 {[%emt 0:00:08]} Rxc1+ {[%emt 0:00:18]} 38. Nxc1 {[%emt 0:00:05]} a4 {[%emt 0:00:16]} 39. Qe2 {[%emt 0:00:03]} Kh7 {[%emt 0:00:20]} 40. Rd2 {[%emt 0:00:03]} Nd5 {[%emt 0:00:05]} 41. Qd3 {[%emt 0:00:08]} Kg8 {[%emt 0:00:42]} 42. Nce2 {[%emt 0:00:02]} Nb6 {[%emt 0:00:16]} 43. Ng3 {[%emt 0:00:03]} Qd5 {[%emt 0:00:10]} 44. Nf3 {[%emt 0:00:08]} Qxd3+ {[%emt 0:00:10]} 45. Rxd3 {[%emt 0:00:01]} Nc4 {[%emt 0:00:01]} 46. Rc3 {[%emt 0:00:08]} d5 {[%emt 0:00:06]} 47. Kc1 {[%emt 0:00:01]} Bf8 {[%emt 0:00:17]} 48. Nh5 {[%emt 0:00:01]} Be7 {[%emt 0:00:07]} 49. Nd4 {[%emt 0:00:07]} Rb6 {[%emt 0:00:13]} 50. Nf4 {[%emt 0:00:03]} c6 {[%emt 0:00:05]} 51. Ng6 {[%emt 0:00:02]} Bc5 {[%emt 0:00:15]} 52. Nc2 {[%emt 0:00:14]} Nxb2 {[%emt 0:00:31]} 53. Rh3 {[%emt 0:00:11]} d4 {[%emt 0:01:01]} 54. e7 {[%emt 0:00:01]} Kf7 {[%emt 0:00:16]} 55. Rxh6 {[%emt 0:00:01]} Bxe7 {[%emt 0:00:38]} 56. Rh7+ {[%emt 0:00:01]} Kg8 {[%emt 0:00:02]} 57. Rxe7 {[%emt 0:00:02]} d3 {[%emt 0:00:02]} 58. Nb4 {[%emt 0:00:03]} Nc4 {[%emt 0:00:03]} 59. Nxd3 {[%emt 0:00:08]} Nxa3 {[%emt 0:00:05]} 60. Ra7 {[%emt 0:00:04]} Rb1+ {[%emt 0:00:04]} 61. Kd2 {[%emt 0:00:01]} Nc4+ {[%emt 0:00:02]} 62. Kc3 {[%emt 0:00:05]} Nb6 {[%emt 0:00:01]} 63. Ndf4 {[%emt 0:00:11]} Rb3+ {[%emt 0:00:05]} 64. Kc2 {[%emt 0:00:03]} Rg3 {[%emt 0:00:02]} 65. Ne6 {[%emt 0:00:02]} Rg2+ {[%emt 0:00:05]} 66. Kd3 {[%emt 0:00:04]} Rg3+ {[%emt 0:00:03]} 67. Ke2 {[%emt 0:00:03]} Rxg4 {[%emt 0:00:09]} 68. Rg7# {[%emt 0:00:03]} 1-0

[Event "FIDE Online Quarter final-2020"]
[Site "Online"]
[Date "2020.08.29"]
[Round "4.2"]
[White "Osmak, Iulija"]
[Black "Zatonskih, Anna"]
[Result "1/2-1/2"]
[ECO "D02"]
[WhiteElo "2317"]
[BlackElo "2396"]
[Annotator "ChessBase"]
[PlyCount "52"]
[EventDate "2020.08.28"]
[EventType "k.o."]
[SourceTitle "playchess.com"]
[Source "ChessBase"]
[SourceQuality "1"]
[TimeControl "900+5"]

1. d4 {[%emt 0:00:01]} d5 {[%emt 0:00:04]} 2. Bf4 {[%emt 0:00:01]} Nf6 {[%emt 0:00:33]} 3. e3 {[%emt 0:00:02]} e6 {[%emt 0:00:02]} 4. Nd2 {[%emt 0:00:05]} Bd6 {[%emt 0:00:08]} 5. Ngf3 {[%emt 0:00:05]} Bxf4 {[%emt 0:01:21]} 6. exf4 {[%emt 0:00:01]} O-O {[%emt 0:00:01]} 7. Bd3 {[%emt 0:00:05]} b6 {[%emt 0:00:02]} 8. Qe2 {[%emt 0:00:08]} a5 {[%emt 0:00:08]} 9. O-O {[%emt 0:01:08]} Ba6 {[%emt 0:00:03]} 10. Bxa6 {[%emt 0:00:05]} Nxa6 {[%emt 0:00:02]} 11. c3 {[%emt 0:00:09]} Qd6 {[%emt 0:02:44]} 12. Ne5 {[%emt 0:00:40]} c5 {[%emt 0:00:22]} 13. Rac1 {[%emt 0:00:48]} Rfc8 {[%emt 0:00:30]} 14. Ndf3 {[%emt 0:01:31]} Ne4 {[%emt 0:00:25]} 15. g3 {[%emt 0:02:30]} h6 {[%emt 0:01:29]} 16. Rfd1 {[%emt 0:00:11]} cxd4 {[%emt 0:03:28]} 17. cxd4 {[%emt 0:02:47]} Nb4 {[%emt 0:00:19]} 18. a3 {[%emt 0:00:05]} Nc6 {[%emt 0:00:03]} 19. Qb5 {[%emt 0:02:59]} Nxe5 {[%emt 0:00:26]} 20. Nxe5 {[%emt 0:00:57]} Rc7 {[%emt 0:01:47]} 21. Nd3 {[%emt 0:01:27]} Rac8 {[%emt 0:00:45]} 22. Rxc7 {[%emt 0:00:24]} Rxc7 {[%emt 0:00:03]} 23. Qe8+ {[%emt 0:00:13]} Qf8 {[%emt 0:00:17]} 24. Qb5 {[%emt 0:00:03]} Qd6 {[%emt 0:00:30]} 25. Qe8+ {[%emt 0:00:13]} Qf8 {[%emt 0:00:02]} 26. Qb5 {[%emt 0:00:13]} Qd6 {[%emt 0:00:18]} 1/2-1/2